Cogmind - Beta 13 @@@ ROGUE MODE // 2024.04.23 @ 17:18:09 Player: shockk Result: Destroyed by G-34 Mercenary with Small Laser Performance ------------- Evolutions (0) 0 Regions Visited (1) 200 Robots Destroyed (8) 40 Value Destroyed (182) 182 Prototype IDs (2) 40 Alien Tech Used (0) 0 Bonus (0) 0 TOTAL SCORE: 462 Bonus ------- None Cogmind --------- Core Integrity 0/250 Matter 300/300 Energy 249/250 System Corruption 0% Temperature Cool (6) Movement Core (100) Ox1 Location -10/Materials Parts ------- > --- POWER (1) -------- Ion Engine > --- PROPULSION (2) --- (None) > --- UTILITY (2) ------ (None) > --- WEAPON (2) ------- (None) > --- INVENTORY (5) ---- Ion Engine Flight Unit Peak State ------------ > --- POWER ------------ Ion Engine > --- PROPULSION ------- Aluminum Leg Aluminum Leg > --- UTILITY ---------- Heat Sink ECM Suite > --- WEAPON ----------- Medium Laser Grenade Launcher > --- INVENTORY -------- Flight Unit Flight Unit Beam Cannon [Rating: 7] Favorites ----------- Power Ion Engine Engine Ion Engine Propulsion Aluminum Leg Leg Aluminum Leg Flight Unit Flight Unit Utility Heat Sink Device Heat Sink Weapon Medium Laser Energy Gun Medium Laser Energy Cannon Beam Cannon Launcher Grenade Launcher Build | -11 -10 ------- Run | Yrd Mat Slots Evolved . | . . Power . | . . Propulsion . | . . Utility . | . . Weapon . | . . Parts Attached 15 | 6 9 Power 3 | 2 1 Engine 3 | 2 1 Core . | . . Reactor . | . . Propulsion 7 | 2 5 Treads . | . . Leg 5 | 2 3 Wheel . | . . Hover . | . . Flight 2 | . 2 Utility 2 | 1 1 Device 2 | 1 1 Storage . | . . Processor . | . . Hackware . | . . Protection . | . . Artifact . | . . Weapon 3 | 1 2 Energy Gun 1 | 1 . Energy Cannon 1 | . 1 Ballistic Gun . | . . Ballistic Cannon . | . . Launcher 1 | . 1 Special Weapon . | . . Impact Weapon . | . . Slashing Weapon . | . . Piercing Weapon . | . . Special Melee Weapon . | . . Unidentified Prototypes . | . . Parts Lost 6 | . 6 Power . | . . Propulsion 2 | . 2 Utility 2 | . 2 Weapon 2 | . 2 Highest Loss Streak 3 | . 3 To Critical Strikes . | . . Average Slot Usage (%) 75 | . 75 Engine 14 | . 14 Leg 24 | . 24 Device 19 | . 19 Energy Gun 9 | . 9 Launcher 7 | . 7 Naked Turns . | . . Heaviest Build 13 | 8 13 Greatest Support 20 | 20 20 Greatest Overweight (x) 1 | . 1 Average Overweight (x) . | . . Largest Inventory Capacity 5 | 5 5 Average Capacity 5 | 5 5 Most Carried 5 | 2 5 Average Carried . | . 1 Final Capacity 5 | 5 5 Final Carried 2 | . 2 Class Distribution -------------------- 100% | Mutant Dominant Class ---------------- Mutant | -10/Materials Resources | -11 -10 ----------- Run | Yrd Mat Matter Collected 330 | 260 70 Remotely . | . . Salvage Created 215 | 49 166 Parts 13 | 2 11 Haulers Intercepted . | . . Recyclers Shooed 1 | . 1 Parts Field Recycled . | . . Retrieved Matter . | . . Parts Self-Destructed . | . . Prevented . | . . Kills | -11 -10 ------- Run | Yrd Mat Combat Hostiles Destroyed 7 | 1 6 Guns 2 | . 2 AOE 4 | . 4 Classes Destroyed 3 | 1 2 Recycler 1 | . 1 Swarmer 3 | . 3 Grunt 4 | 1 3 Best Kill Streak 4 | 1 4 Combat Bots Only 3 | 1 3 Max Kills in Single Turn 2 | 1 2 Gunslinging . | . . Exploded 2 | . 2 Melee . | . . Uniques/NPCs Destroyed . | . . Combat | -11 -10 -------- Run | Yrd Mat Hostile Shots Fired 86 | 9 77 Missed 29 | 3 26 Damage Taken 701 | 67 634 Core 250 | 34 216 Absorbed by Shields . | . . Core Remaining (%) 86 | 86 . Volleys Fired 27 | 10 17 Largest 2 | 1 2 Hottest 80 | 50 80 Shots Fired 32 | 10 22 Gun 27 | 10 17 Cannon . | . . Launcher 5 | . 5 Special . | . . Kinetic . | . . Thermal 27 | 10 17 Explosive 5 | . 5 Electromagnetic . | . . Robot Hit Streak 4 | 4 3 Robot Miss Streak 3 | 2 3 Penetration Max . | . . Secondary Targets . | . . Shots Hit Robots 20 | 8 12 Core Hits 15 | . 15 Critical Kills . | . . Critical Parts Destroyed . | . . Critical Strikes . | . . Melee Attacks . | . . Impact . | . . Slashing . | . . Piercing . | . . Sneak Attacks . | . . Combat Hostiles . | . . Follow-up Attacks . | . . Damage Inflicted 560 | 98 462 Guns 196 | 98 98 Cannons . | . . Explosions 344 | . 344 Melee . | . . Ramming 20 | . 20 Kinetic . | . . Thermal 196 | 98 98 Explosive 344 | . 344 Electromagnetic . | . . Impact . | . . Slashing . | . . Piercing . | . . Highest Corruption . | . . Average Corruption . | . . Corruption Purged . | . . Corruption Blocked . | . . Overload Shots . | . . Overflow Damage 34 | . 34 Projectiles . | . . Explosions 34 | . 34 Melee . | . . Knockbacks . | . . Impact . | . . Kinetic . | . . Secondary . | . . Self-Inflicted Damage 77 | . 77 Shots 4 | . 4 Rammed . | . . Targets Rammed 10 | . 10 Kicked 10 | . 10 Crushed . | . . Highest Temperature 130 | 130 10 Average Temperature 42 | 67 3 Received Heat Transfer 330 | 36 294 Siege Activations . | . . Robots Corrupted . | . . Combat Hostiles . | . . Parts Fried . | . . Impact Corruptions . | . . Robots Melted 1 | 1 . Combat Hostiles 1 | 1 . Parts Melted 1 | 1 . Heat Transferred 592 | 296 296 Parts Sabotaged . | . . Parts Stolen . | . . Parts Stripped . | . . Power Chain Reactions . | . . Alert | -11 -10 ------- Run | Yrd Mat Peak Influence 220 | 20 220 Initial 13 | . 13 Average 84 | 12 130 Maximum Alert Level 1 | . 1 Low Security (%) 85 | 100 76 Level 1 14 | . 23 Level 2 . | . . Level 3 . | . . Level 4 . | . . Level 5 . | . . High Security . | . . Max Security . | . . Squads Dispatched 3 | . 3 Investigation 1 | . 1 Extermination . | . . Reinforcement 2 | . 2 Assault . | . . Garrison . | . . Intercept . | . . Searches Triggered . | . . Construction Impeded . | . . Haulers Reinforced . | . . Active Scanning Responses . | . . Cargo Convoy Interrupts . | . . Stealth | -11 -10 --------- Run | Yrd Mat Distress Signals 2 | . 2 Communications Jammed . | . . Distress Signals . | . . Times Spotted 19 | 1 18 Peak Tracking Total 4 | 1 4 Tactical Retreats 3 | . 3 Traps | -11 -10 ------- Run | Yrd Mat Traps Triggered 1 | . 1 Indirectly . | . . Trap Hack Attempts . | . . Triggered . | . . Disarmed . | . . Reprogrammed . | . . Reused . | . . Traps Extracted . | . . Installed . | . . Triggered . | . . Machines | -11 -10 ---------- Run | Yrd Mat Machines Disabled 1 | . 1 Max in Single Turn 1 | . 1 Machines Repaired . | . . Machines Dismantled . | . . Machines Sabotaged . | . . Overloaded Fab Kills . | . . Hacking | -11 -10 --------- Run | Yrd Mat Machines Accessed 2 | . 2 Terminals 1 | . 1 Fabricators . | . . Repair Stations . | . . Recycling Units 1 | . 1 Scanalyzers . | . . Garrison Access . | . . Total Hacks 9 | . 9 Successful 6 | . 6 Failed 3 | . 3 Catastrophic . | . . Database Lockouts . | . . Manual . | . . Terminals 2 | . 2 Fabricators . | . . Repair Stations . | . . Recycling Units 7 | . 7 Scanalyzers . | . . Garrison Access . | . . Terminal Hacks 2 | . 2 Prototype ID Bank 1 | . 1 Recall Reinforcements 1 | . 1 Fabricator Hacks . | . . Repair Station Hacks . | . . Recycling Unit Hacks 4 | . 4 Recycle Component 2 | . 2 Process 1 | . 1 Retrieve Matter 1 | . 1 Scanalyzer . | . . Garrison Access Hacks . | . . Unauthorized Hacks . | . . Terminals . | . . Fabricators . | . . Repair Stations . | . . Recycling Units . | . . Scanalyzers . | . . Garrison Access . | . . Data Cores Recovered . | . . Used . | . . Hacking Detections 2 | . 2 Full Trace Events . | . . Feedback Events . | . . Feedback Blocked . | . . Robot Schematics Acquired . | . . Robots Built . | . . Authchips . | . . Time . | . . Total Robot Build Rating . | . . Part Schematics Acquired . | . . Parts Built . | . . Authchips . | . . Time . | . . Total Part Build Rating . | . . Parts Repaired . | . . Time . | . . Parts Recycled 2 | . 2 Recycled Matter 55 | . 55 Retrieved Matter 55 | . 55 Retrieved Components . | . . Parts Scanalyzed . | . . Part Schematics Acquired . | . . Parts Damaged . | . . Bothacking | -11 -10 ------------ Run | Yrd Mat Used RIF Installer . | . . Robots Hacked . | . . Non-combat . | . . Combat . | . . Robot Hacks Applied . | . . Relay Couplers Released . | . . Fabnet Peak Effective % . | . . Robots Rewired . | . . Allies Hacked . | . . Hacks Repelled . | . . Allies | -11 -10 -------- Run | Yrd Mat Total Allies . | . . Largest Group . | . . Highest-Rated Group . | . . Highest-Rated Ally . | . . Total Orders . | . . Ally Attacks . | . . Total Damage . | . . Kills . | . . Allies Corrupted . | . . Allies Melted . | . . Intel | -11 -10 ------- Run | Yrd Mat Robot Analysis Total . | . . Derelict Logs Recovered . | . . Drone Launches . | . . Drone Recoveries . | . . Exploration | -11 -10 ------------- Run | Yrd Mat Turns Passed 679 | 265 414 Spaces Moved 418 | 130 288 Core 28 | 23 5 Treads . | . . Legs 390 | 107 283 Wheels . | . . Hover . | . . Flight . | . . Fastest Speed 50 | 50 100 Average Speed 115 | 107 119 Slowest Speed 120 | 120 120 Overloaded Moves . | . . Propulsion Burnouts . | . . Robots Hopped . | . . Cave-ins Triggered . | . . Exploration Rate (%) 23 | 10 37 Regions Visited 1 Branch Regions . Pre-discovered Areas . | . . Known Exits Taken . | . . Unknown Exits Taken 1 | 1 . Scrap Searched . | . . Spaces Dug . | . . Terrain Destroyed 29 | . 29 Melee . | . . Projectile . | . . AOE 29 | . 29 Terrain Rammed . | . . Walls Destroyed . | . . Machines Disabled . | . . Actions | -11 -10 --------- Run | Yrd Mat Total 583 | 246 337 Wait 93 | 93 . Move 417 | 129 288 Hop . | . . Pick Up 12 | 6 6 Fast Attach . | . . Attach 15 | 6 9 Detach 8 | 1 7 Swap . | . . Drop 1 | 1 . Fire 27 | 10 17 Melee . | . . Ram . | . . Kick 10 | . 10 Crush . | . . Escape Stasis . | . . Rewire . | . . Trap . | . . Miscellaneous . | . . Route ------- -11/Scrapyard -10/Materials History --------- Turn | Location | Event 2 | -11/Scrapyard | Met Revision 17 71 | -11/Scrapyard | Discovered new exit (range 8) 266 | -11/Scrapyard | Entered Materials 317 | -10/Materials | Build established: Mutant 653 | -10/Materials | Core integrity fell below 50% 675 | -10/Materials | Core integrity fell below 20% 680 | -10/Materials | Destroyed by G-34 Mercenary with Small Laser Last Messages --------------- U-05 Engineer builds a Door. U-05 Engineer lays Concrete. Aluminum Leg destroyed. Connecting with Terminal... [Achievement: GoHome()] >>Recall(Reinforcements) Establishing remote squad link... Recalled reinforcement squad 3XVGNKMF8P. >>Prototypes Downloading prototype IDs... Imp. Assault Rifle Imp. EM Shotgun Acquired Ion Engine. Kicked G-34 Mercenary. ECM Suite destroyed. Kicked G-34 Mercenary out of the way. Kicked G-34 Mercenary. Kicked G-34 Mercenary out of the way. Aluminum Leg destroyed. Heat Sink destroyed. Map ----- +----------------------------------------------------+ | ?????????# = # ######## ##???? | | ?????????# ######??????# #????? | | ?????????# = #???????????# #????? | | ?????????#/######???????????# #????? | | ##+####### ###??????????????# #????? | | ################ #????? | | + + #????? | | ##### ## ###### | | ###### ## #????? ??# # # | | ## # #????? ??# # # | | ## % #?????? ! ???# # # | | ## "Y" +% #?????? ???# # # | | ## """ #% #??????? ????# + # | | ## # #??????? ????# # # | | ########## #??????##/###### # # | | #????????# #??????# + # | | #????????# #??????# ####### # | | #????????# #??????# #?????###### | | #????????# #??????# #??????????? | | #????????# #??????# #??????????? | | #?????? ## #??????# #??????????? | | #????? ## ##?????# ########???? | | #####+### #?????# # #???? | | #?????# # """ #???? | | #?????# # "T" #???? | | #?????+ /@g #???? | | #####+### #?????# #%g #???? | | ## #######?????# #% ! #???? | | # #???????????# ########???? | | "# """ #???????????# ??????????? | | "# """ #???????????# ??????????? | | "# """ #???????????# ??????????? | | # #???????????#####??????????? | | #########??????????????????????????? | | ???????????????????????????????????? | | ???????????????????????????????????? | | ???????????????????????????????????? | | ???????????????????????????????????? | | ???????????????????????????????????? | | ???????????????????????????????????? | | #??????????????????????????????????? | | #??????????????????????????????????? | | #??????????????????????????????????? | | #??????????????????????????????????? | | #??????????????????????????????????? | | #??????????????????????????????????? | | #??????????????????????????????????? | | #??????????????????????????????????? | | #??????????????????????????????????? | | #??????????????????????????????????? | +----------------------------------------------------+ Best States ------------- Heat Dissipation 35 Energy Generation 10 Energy Capacity 250 Matter Stores 300 Matter Capacity 300 Sight Range 16 Terrain Scan Density 10 ECM Strength 1 Evasion (%) 55 Item Schematics ----------------- None Robot Schematics ------------------ None Fabricated ------------ Nothing Alien Tech Used ----------------- None Achievements -------------- GoHome() It's Just You Challenges ------------ None Game ------ Seed SuspensionFlightTriangulator Manual? 0 Play Time 00:15:02 Cumulative 1.4 hours Start 2024.04.23 @ 17:00:39 End 2024.04.23 @ 17:18:09 Sessions 1 Manual Loads 0 Difficulty Rogue Special Mode None Game No. 3 Rogue 3 Adventurer 0 Explorer 0 Win Type - Total 0 Types 0/0/0/0/0/0/0/0/0 Lore% 4 Gallery% 3 Achievement% 3 Wizard Run 0 Options --------- Layout 0 ASCII 1 Keyboard 1 Movement Arrows Keybinds 0 Fullscreen 2 Font 24/Terminus Map View 76x50 Zoom Use 0% Tactical HUD 0 Map Filters NONE Filters NONE Steam 1 RUN: 78badc19-d519-403d-abe2-7d67f762d7b7